fUSD/lending_fUSD_20240516
["ID","MTS","AMOUNT","RATE_DAILY","PERIOD"]
[327191175,1715886695501,-151.0,0.00010959,2]
[327191176,1715886695510,-151.0,0.00010959,2]
[327191177,1715886695523,-151.0,0.00010959,2]
[327191178,1715886695532,-151.0,0.00010959,2]
[327191179,1715886695542,-151.0,0.00010959,2]
[327191180,1715886695551,-151.0,0.00010959,2]
[327191181,1715886695560,-151.0,0.00010959,2]
[327191182,1715886695569,-151.0,0.00010959,2]
[327191183,1715886695578,-151.0,0.00010959,2]
[327191184,1715886695587,-151.0,0.00010959,2]
[327191185,1715886695598,-151.0,0.00010959,2]
[327191186,1715886695607,-248.72359787,0.00010959,2]
[327191187,1715886695616,-154.436216,0.00010959,2]
[327191188,1715886695625,-151.0,0.00010959,2]
[327191189,1715886695638,-151.0,0.00010959,2]
[327191190,1715886695647,-151.0,0.00010959,2]
[327191191,1715886695656,-151.0,0.00010959,2]
[327191192,1715886695666,-151.0,0.00010959,2]
[327191193,1715886695675,-151.0,0.00010959,2]
[327191194,1715886695684,-151.0,0.00010959,2]
[327191195,1715886695693,-151.0,0.00010959,2]
[327191196,1715886695702,-425.581939,0.00010959,2]
[327191197,1715886695711,-425.581939,0.00010959,2]
[327191198,1715886695720,-425.581939,0.00010959,2]
[327191199,1715886695730,-425.581939,0.00010959,2]
[327191200,1715886695739,-425.581939,0.00010959,2]
[327191201,1715886695748,-425.581939,0.00010959,2]
[327191202,1715886695757,-425.581939,0.00010959,2]
[327191203,1715886695767,-425.581939,0.00010959,2]
[327191204,1715886695776,-425.581939,0.00010959,2]
[327191205,1715886695785,-425.581939,0.00010959,2]
[327191206,1715886695795,-425.581939,0.00010959,2]
[327191207,1715886695805,-425.581939,0.00010959,2]
[327191208,1715886695814,-151.0,0.00010959,2]
[327191209,1715886695823,-151.0,0.00010959,2]
[327191210,1715886695833,-151.0,0.00010959,2]
[327191211,1715886695842,-151.0,0.00010959,2]
[327191212,1715886695851,-151.0,0.00010959,2]
[327191213,1715886695860,-151.0,0.00010959,2]
[327191214,1715886695869,-151.0,0.00010959,2]
[327191215,1715886695878,-224.840721,0.00010959,2]
[327191216,1715886695890,-151.0,0.00010959,2]
[327191217,1715886695900,-151.0,0.00010959,2]
[327191218,1715886695909,-151.0,0.00010959,2]
[327191219,1715886695918,-151.0,0.00010959,2]
[327191220,1715886695927,-151.0,0.00010959,2]
[327191221,1715886695936,-151.0,0.00010959,2]
[327191222,1715886695945,-151.0,0.00010959,2]
[327191223,1715886695954,-151.0,0.00010959,2]
[327191224,1715886695963,-151.0,0.00010959,2]
[327191225,1715886695973,-151.0,0.00010959,2]
[327191226,1715886695982,-151.0,0.00010959,2]
[327191227,1715886695991,-151.0,0.00010959,2]
[327191228,1715886696000,-151.0,0.00010959,2]
[327191229,1715886696009,-151.0,0.00010959,2]
[327191230,1715886696019,-151.0,0.00010959,2]
[327191231,1715886696029,-151.0,0.00010959,2]
[327191232,1715886696038,-151.0,0.00010959,2]
[327191233,1715886696047,-151.0,0.00010959,2]
[327191234,1715886696056,-151.0,0.00010959,2]
[327191235,1715886696066,-151.0,0.00010959,2]
[327191236,1715886696076,-151.0,0.00010959,2]
[327191237,1715886696085,-151.0,0.00010959,2]
[327191238,1715886696095,-151.0,0.00010959,2]
[327191239,1715886696104,-151.0,0.00010959,2]
[327191240,1715886696113,-151.0,0.00010959,2]
[327191241,1715886696123,-151.0,0.00010959,2]
[327191242,1715886696134,-151.0,0.00010959,2]
[327191243,1715886696143,-206.752455,0.00010959,2]
[327191244,1715886696152,-151.0,0.00010959,2]
[327191245,1715886696161,-151.0,0.00010959,2]
[327191246,1715886696170,-217.34,0.00010959,2]
[327191247,1715886696180,-151.0,0.00010959,2]
[327191248,1715886696189,-151.0,0.00010959,2]
[327191249,1715886696198,-151.0,0.00010959,2]
[327191250,1715886696208,-151.0,0.00010959,2]
[327191251,1715886696217,-151.0,0.00010959,2]
[327191252,1715886696226,-151.0,0.00010959,2]
[327191253,1715886696235,-151.0,0.00010959,2]
[327191254,1715886696245,-151.0,0.00010959,2]
[327191255,1715886696254,-151.0,0.00010959,2]
[327191256,1715886696263,-151.0,0.00010959,2]
[327191257,1715886696272,-198.490094,0.00010959,2]
[327191258,1715886696283,-151.0,0.00010959,2]
[327191259,1715886696292,-151.0,0.00010959,2]
[327191260,1715886696301,-151.0,0.00010959,2]
[327191261,1715886696311,-151.0,0.00010959,2]
[327191262,1715886696320,-151.0,0.00010959,2]
[327191263,1715886696329,-151.0,0.00010959,2]
[327191264,1715886696339,-200.253742,0.00010959,2]
[327191265,1715886696348,-159.039808,0.00010959,2]
[327191266,1715886696357,-10000.0,0.00010959,2]
[327191267,1715886696367,-151.0,0.00010959,2]
[327191268,1715886696378,-151.0,0.00010959,2]
[327191269,1715886696390,-155.754442,0.00010959,2]
[327191270,1715886696399,-151.0,0.00010959,2]
[327191271,1715886696409,-151.0,0.00010959,2]
[327191272,1715886696419,-344.942949,0.00010959,2]
[327191273,1715886696428,-344.942949,0.00010959,2]
[327191274,1715886696438,-344.942949,0.00010959,2]
[327191275,1715886696447,-344.942949,0.00010959,2]
[327191276,1715886696456,-344.942949,0.00010959,2]
[327191277,1715886696466,-344.942949,0.00010959,2]
[327191278,1715886696475,-438.55022348,0.00010959,2]
[327191279,1715886696484,-634.75,0.00010959,2]
[327191280,1715886696493,-634.75,0.00010959,2]
[327191281,1715886696503,-1069.87,0.00010959,2]
[327191282,1715886696513,-1069.87,0.00010959,2]
[327191283,1715886696527,-820.33,0.00010959,2]
[327191284,1715886696537,-820.33,0.00010959,2]
[327191285,1715886696547,-500.0,0.00010959,2]
[327191286,1715886696556,-500.0,0.00010959,2]
[327191287,1715886696566,-500.0,0.00010959,2]
[327191288,1715886696575,-500.0,0.00010959,2]
[327191289,1715886696585,-688.6,0.00010959,2]
[327191290,1715886696597,-688.6,0.00010959,2]
[327191291,1715886696606,-500.0,0.00010959,2]
[327191292,1715886696616,-500.0,0.00010959,2]
[327191293,1715886696625,-500.0,0.00010959,2]
[327191294,1715886696635,-500.0,0.00010959,2]
[327191295,1715886696645,-500.0,0.00010959,2]
[327191296,1715886696760,-500.0,0.00010959,2]
[327191297,1715886696769,-500.0,0.00010959,2]
[327191298,1715886696779,-500.0,0.00010959,2]
[327191299,1715886696789,-500.0,0.00010959,2]
[327191300,1715886696798,-500.0,0.00010959,2]
[327191301,1715886696807,-500.0,0.00010959,2]
[327191302,1715886696817,-500.0,0.00010959,2]
[327191303,1715886696827,-500.0,0.00010959,2]
[327191304,1715886696836,-151.0,0.00010959,2]
[327191305,1715886696845,-1014.58,0.00010959,2]
[327191306,1715886696855,-1014.58,0.00010959,2]
[327191307,1715886696864,-408.89726343,0.00010959,2]
[327191308,1715886696874,-579.39,0.00010959,2]
[327191309,1715886696885,-579.39,0.00010959,2]
[327191310,1715886696894,-500.0,0.00010959,2]
[327191311,1715886696904,-500.0,0.00010959,2]
[327191312,1715886696913,-500.0,0.00010959,2]
[327191313,1715886696923,-500.0,0.00010959,2]
[327191314,1715886696933,-425.581939,0.00010959,2]
[327191315,1715886696943,-425.581939,0.00010959,2]
[327191316,1715886696953,-500.0,0.00010959,2]
[327191317,1715886696963,-500.0,0.00010959,2]
[327191318,1715886696973,-151.0,0.00010959,2]
[327191319,1715886696982,-500.0,0.00010959,2]
[327191320,1715886696991,-500.0,0.00010959,2]
[327191321,1715886697000,-1369.41,0.00010959,2]
[327191322,1715886697010,-1369.41,0.00010959,2]
[327191323,1715886697019,-617.56,0.00010959,2]
[327191324,1715886697029,-617.56,0.00010959,2]
[327191325,1715886697038,-500.0,0.00010959,2]
[327191326,1715886697048,-500.0,0.00010959,2]
[327191327,1715886697057,-500.0,0.00010959,2]
[327191328,1715886697066,-500.0,0.00010959,2]
[327191329,1715886697075,-722.03,0.00010959,2]
[327191330,1715886697085,-722.03,0.00010959,2]
[327191331,1715886697095,-1912.95,0.00010959,2]
[327191332,1715886697105,-1912.95,0.00010959,2]
[327191333,1715886697115,-5197.62,0.00010959,2]
[327191334,1715886697124,-5197.62,0.00010959,2]
[327191335,1715886697134,-159.35,0.00010959,2]
[327191336,1715886697143,-1543.58,0.00010959,2]
[327191337,1715886697153,-1543.58,0.00010959,2]
[327191338,1715886697163,-958.83,0.00010959,2]
[327191339,1715886697184,-977.01,0.00010959,2]
[327191340,1715886697197,-958.83,0.00010959,2]
[327191341,1715886697207,-977.01,0.00010959,2]
[327191342,1715886697216,-500.0,0.00010959,2]
[327191343,1715886697226,-500.0,0.00010959,2]
[327191344,1715886697235,-500.0,0.00010959,2]
[327191345,1715886697244,-500.0,0.00010959,2]
[327191346,1715886697254,-500.0,0.00010959,2]
[327191347,1715886697264,-500.0,0.00010959,2]
[327191348,1715886697274,-500.0,0.00010959,2]
[327191349,1715886697283,-534.51,0.00010959,2]
[327191350,1715886697292,-534.51,0.00010959,2]
[327191351,1715886697301,-500.0,0.00010959,2]
[327191352,1715886697311,-500.0,0.00010959,2]
[327191353,1715886697320,-702.73,0.00010959,2]
[327191354,1715886697329,-702.73,0.00010959,2]
[327191355,1715886697339,-500.0,0.00010959,2]
[327191356,1715886697349,-500.0,0.00010959,2]
[327191357,1715886697358,-500.0,0.00010959,2]
[327191358,1715886697368,-500.0,0.00010959,2]
[327191359,1715886697377,-638.23,0.00010959,2]
[327191360,1715886697388,-751.27,0.00010959,2]
[327191361,1715886697397,-751.27,0.00010959,2]
[327191362,1715886697407,-344.942949,0.00010959,2]
[327191363,1715886697418,-411.86,0.0001096,2]
[327191364,1715886697430,-282.33501335,0.00011,2]
[327191365,1715886697442,-200.0,0.00011,2]
[327191366,1715886697452,-1000.0,0.00011,2]
[327191367,1715886697461,-500.0,0.0001102,2]
[327191368,1715886697471,-758.29,0.0001102,2]
[327191369,1715886697480,-500.0,0.0001102,2]
[327191370,1715886697490,-546.98,0.0001102,2]
[327191371,1715886697500,-472.73889287,0.0001102,2]
[327191372,1715886697510,-901.85,0.0001102,2]
[327191373,1715886697523,-973.0,0.00011021,2]
[327191374,1715886697533,-150.121,0.00011021,2]
[327191375,1715886697543,-150.532,0.00011021,2]
[327191376,1715886697553,-178.0,0.00011021,2]
[327191377,1715886697563,-150.269,0.00011021,2]
[327191378,1715886697572,-150.224,0.00011021,2]
[327191379,1715886697582,-200.0,0.00011021,2]
[327191380,1715886697591,-237.486,0.00011021,2]
[327191381,1715886697602,-2159.0,0.00011021,2]
[327191382,1715886697612,-1399.0,0.00011021,2]
[327191383,1715886697621,-544.0,0.00011021,2]
[327191384,1715886697631,-1790.0,0.00011021,2]
[327191385,1715886697640,-1261.0,0.00011021,2]
[327191386,1715886697650,-1225.0,0.00011021,2]
[327191387,1715886697660,-810.0,0.00011021,2]
[327191388,1715886697670,-164.0,0.00011021,2]
[327191389,1715886697680,-612.0,0.00011021,2]
[327191390,1715886697690,-444.0,0.00011021,2]
[327191391,1715886697699,-439.0,0.00011021,2]
[327191392,1715886697709,-150.0,0.00011021,2]
[327191393,1715886697719,-2351.0,0.00011021,2]
[327191394,1715886697729,-1647.0,0.00011021,2]
[327191395,1715886697739,-150.0,0.00011021,2]
[327191396,1715886697748,-3158.0,0.00011021,2]
[327191397,1715886697758,-1138.0,0.00011021,2]
[327191398,1715886697767,-215.0,0.00011021,2]
[327191399,1715886697778,-553.24,0.00011022,2]
[327191400,1715886697788,-500.0,0.00011022,2]
[327191401,1715886697798,-642.06,0.00011022,2]
[327191402,1715886697808,-500.0,0.00011022,2]
[327191403,1715886697818,-500.0,0.00011022,2]
[327191404,1715886697828,-500.0,0.00011022,2]
[327191405,1715886697837,-2571.6,0.00011022,2]
[327191406,1715886697847,-500.0,0.00011022,2]
[327191407,1715886697858,-1214.76,0.00011022,2]
[327191408,1715886697868,-500.0,0.00011022,2]
[327191409,1715886697878,-500.0,0.00011022,2]
[327191410,1715886697888,-500.0,0.00011022,2]
[327191411,1715886697898,-971.84,0.00011022,2]
[327191412,1715886697907,-918.94,0.00011022,2]
[327191413,1715886697916,-500.0,0.00011022,2]
[327191414,1715886697926,-534.22,0.00011022,2]
[327191415,1715886697936,-500.0,0.00011022,2]
[327191416,1715886697946,-623.22,0.00011022,2]
[327191417,1715886697956,-500.0,0.00011022,2]
[327191418,1715886697966,-572.37,0.00011022,2]
[327191419,1715886697975,-1199.07,0.00011022,2]
[327191420,1715886697986,-1657.8617469,0.00011023,2]
[327191421,1715886697995,-7161.9028953,0.00011023,2]
[327191422,1715886698004,-814.9831223,0.00011023,2]
[327191423,1715886698014,-802.2687263,0.00011023,2]
[327191424,1715886698024,-1333.1040972,0.00011023,2]
[327191425,1715886698034,-9157.0323159,0.00011023,2]
[327191426,1715886698044,-523.86,0.00011027,2]
[327191427,1715886698054,-500.0,0.00011027,2]
[327191428,1715886698064,-500.0,0.00011027,2]
[327191429,1715886698074,-606.18,0.00011027,2]
[327191430,1715886698084,-1423.9,0.00011027,2]
[327191431,1715886698094,-596.8,0.00011027,2]
[327191432,1715886698104,-758.29,0.00011027,2]
[327191433,1715886698113,-1486.2,0.00011027,2]
[327191434,1715886698123,-500.0,0.00011027,2]
[327191435,1715886698133,-1012.04,0.00011027,2]
[327191436,1715886698143,-957.42,0.00011027,2]
[327191437,1715886698153,-546.98,0.00011027,2]
[327191438,1715886698162,-712.64,0.00011027,2]
[327191439,1715886698171,-901.85,0.00011027,2]
[327191440,1715886698181,-5674.58,0.00011027,2]
[327191441,1715886698190,-500.0,0.00011027,2]
[327191442,1715886698199,-5568.04,0.00011027,2]
[327191443,1715886698208,-5402.35633026,0.00011028,2]
[327191444,1715886698218,-500.0,0.00011028,2]
[327191445,1715886698227,-500.0,0.00011028,2]
[327191446,1715886698236,-500.0,0.00011028,2]
[327191447,1715886698245,-500.0,0.00011028,2]
[327191448,1715886698254,-402.4,0.00011028,2]
[327191449,1715886698263,-1115.52,0.00011028,2]
[327191450,1715886698272,-1115.52,0.00011028,2]
[327191451,1715886698281,-1115.52,0.00011028,2]
[327191452,1715886698291,-1115.52,0.00011028,2]
[327191453,1715886698300,-1115.68056533,0.00011028,2]
[327191454,1715886698309,-2594.12,0.00011028,2]
[327191455,1715886698319,-2594.12,0.00011028,2]
[327191456,1715886698328,-2594.12,0.00011028,2]
[327191457,1715886698337,-2594.12,0.00011028,2]
[327191458,1715886698346,-2594.12584689,0.00011028,2]
[327191459,1715886698356,-749.63,0.00011028,2]
[327191460,1715886698365,-1370.77,0.00011028,2]
[327191461,1715886698374,-1370.77,0.00011028,2]
[327191462,1715886698385,-1370.77,0.00011028,2]
[327191463,1715886698394,-1370.77,0.00011028,2]
[327191464,1715886698403,-1371.00999089,0.00011028,2]
[327191465,1715886698413,-557.5,0.00011028,2]
[327191466,1715886698423,-634.75,0.00011028,2]
[327191467,1715886698432,-557.5,0.00011028,2]
[327191468,1715886698442,-557.5,0.00011028,2]
[327191469,1715886698452,-557.5,0.00011028,2]
[327191470,1715886698462,-557.66488189,0.00011028,2]
[327191471,1715886698471,-500.0,0.00011028,2]
[327191472,1715886698481,-500.0,0.00011028,2]
[327191473,1715886698491,-827.4,0.00011028,2]
[327191474,1715886698501,-827.4,0.00011028,2]
[327191475,1715886698511,-827.4,0.00011028,2]
[327191476,1715886698526,-827.4,0.00011028,2]
[327191477,1715886698535,-827.60945218,0.00011028,2]
[327191478,1715886698545,-1069.87,0.00011028,2]
[327191479,1715886698556,-820.33,0.00011028,2]
[327191480,1715886698565,-933.48,0.00011028,2]
[327191481,1715886698575,-933.48,0.00011028,2]
[327191482,1715886698586,-933.48,0.00011028,2]
[327191483,1715886698597,-933.48,0.00011028,2]
[327191484,1715886698607,-933.68156694,0.00011028,2]
[327191485,1715886698617,-500.0,0.00011028,2]
[327191486,1715886698627,-500.0,0.00011028,2]
[327191487,1715886698639,-688.6,0.00011028,2]
[327191488,1715886698648,-500.0,0.00011028,2]
[327191489,1715886698658,-500.0,0.00011028,2]
[327191490,1715886698668,-500.0,0.00011028,2]
[327191491,1715886698677,-151.0,0.00011028,2]
[327191492,1715886698687,-500.0,0.00011028,2]
[327191493,1715886698696,-575.75,0.00011028,2]
[327191494,1715886698706,-151.0,0.00011028,2]
[327191495,1715886698716,-849.25,0.00011028,2]
[327191496,1715886698725,-849.25,0.00011028,2]
[327191497,1715886698735,-849.25,0.00011028,2]
[327191498,1715886698745,-849.25,0.00011028,2]
[327191499,1715886698754,-849.43816156,0.00011028,2]
[327191500,1715886698764,-1068.09,0.00011028,2]
[327191501,1715886698774,-1068.09,0.00011028,2]
[327191502,1715886698783,-1068.09,0.00011028,2]
[327191503,1715886698793,-1068.09,0.00011028,2]
[327191504,1715886698802,-1068.3099474,0.00011028,2]
[327191505,1715886698811,-500.0,0.00011028,2]
[327191506,1715886698820,-500.0,0.00011028,2]
[327191507,1715886698830,-500.0,0.00011028,2]
[327191508,1715886698840,-500.16,0.00011028,2]
[327191509,1715886698850,-1078.88,0.00011028,2]
[327191510,1715886698859,-1078.88,0.00011028,2]
[327191511,1715886698869,-1078.88,0.00011028,2]
[327191512,1715886698879,-1078.88,0.00011028,2]
[327191513,1715886698889,-1079.02333106,0.00011028,2]
[327191514,1715886698898,-1244.73,0.00011028,2]
[327191515,1715886698907,-1244.73,0.00011028,2]
[327191516,1715886698917,-500.0,0.00011028,2]
[327191517,1715886698926,-1244.73,0.00011028,2]
[327191518,1715886698935,-1244.73,0.00011028,2]
[327191519,1715886698945,-1244.81780875,0.00011028,2]
[327191520,1715886698955,-500.0,0.00011028,2]
[327191521,1715886698964,-500.0,0.00011028,2]
[327191522,1715886698974,-491.56,0.00011028,2]
[327191523,1715886698983,-644.79,0.00011028,2]
[327191524,1715886698993,-644.79,0.00011028,2]
[327191525,1715886699003,-644.79,0.00011028,2]
[327191526,1715886699012,-644.79,0.00011028,2]
[327191527,1715886699022,-644.93279977,0.00011028,2]
[327191528,1715886699032,-936.74,0.00011028,2]
[327191529,1715886699042,-1385.2,0.00011028,2]
[327191530,1715886699052,-1385.2,0.00011028,2]
[327191531,1715886699062,-1385.2,0.00011028,2]
[327191532,1715886699072,-1385.2,0.00011028,2]
[327191533,1715886699082,-1385.34041307,0.00011028,2]
[327191534,1715886699092,-500.0,0.00011028,2]
[327191535,1715886699101,-663.17,0.00011028,2]
[327191536,1715886699111,-663.17,0.00011028,2]
[327191537,1715886699120,-663.17,0.00011028,2]
[327191538,1715886699130,-663.17,0.00011028,2]
[327191539,1715886699141,-663.1939324,0.00011028,2]
[327191540,1715886699151,-1813.94,0.00011028,2]
[327191541,1715886699161,-1813.94,0.00011028,2]
[327191542,1715886699176,-1813.94,0.00011028,2]
[327191543,1715886699185,-1813.94,0.00011028,2]
[327191544,1715886699196,-1814.13584585,0.00011028,2]
[327191545,1715886699206,-1014.58,0.00011028,2]
[327191546,1715886699216,-500.0,0.00011028,2]
[327191547,1715886699226,-500.0,0.00011028,2]
[327191548,1715886699236,-500.0,0.00011028,2]
[327191549,1715886699246,-579.39,0.00011028,2]
[327191550,1715886699256,-500.0,0.00011028,2]
[327191551,1715886699266,-1218.95,0.00011028,2]
[327191552,1715886699275,-551.16,0.00011028,2]
[327191553,1715886699285,-551.16,0.00011028,2]
[327191554,1715886699295,-551.16,0.00011028,2]
[327191555,1715886699305,-551.16,0.00011028,2]
[327191556,1715886699315,-551.34644575,0.00011028,2]
[327191557,1715886699325,-500.0,0.00011028,2]
[327191558,1715886699334,-500.0,0.00011028,2]
[327191559,1715886699344,-781.64,0.00011028,2]
[327191560,1715886699353,-784.47,0.00011028,2]
[327191561,1715886699363,-784.47,0.00011028,2]
[327191562,1715886699372,-784.47,0.00011028,2]
[327191563,1715886699382,-553.24,0.00011028,2]
[327191564,1715886699392,-784.47,0.00011028,2]
[327191565,1715886699402,-500.0,0.00011028,2]
[327191566,1715886699412,-784.63838056,0.00011028,2]
[327191567,1715886699421,-500.0,0.00011028,2]
[327191568,1715886699430,-1369.41,0.00011028,2]
[327191569,1715886699440,-717.18,0.00011028,2]
[327191570,1715886699449,-500.0,0.00011028,2]
[327191571,1715886699458,-500.0,0.00011028,2]
[327191572,1715886699468,-617.56,0.00011028,2]
[327191573,1715886699477,-500.0,0.00011028,2]
[327191574,1715886699487,-620.5972571,0.00011028,2]
[327191575,1715886699496,-500.0,0.00011028,2]
[327191576,1715886699506,-724.04,0.00011028,2]
[327191577,1715886699517,-500.0,0.00011028,2]
[327191578,1715886699528,-722.03,0.00011028,2]
[327191579,1715886699537,-151.0,0.00011028,2]
[327191580,1715886699547,-500.0,0.00011028,2]
[327191581,1715886699558,-1912.95,0.00011028,2]
[327191582,1715886699568,-642.06,0.00011028,2]
[327191583,1715886699578,-1056.04,0.00011028,2]
[327191584,1715886699588,-5197.62,0.00011028,2]
[327191585,1715886699599,-1543.58,0.00011028,2]
[327191586,1715886699609,-562.11,0.00011028,2]
[327191587,1715886699619,-500.0,0.00011028,2]
[327191588,1715886699628,-562.11,0.00011028,2]
[327191589,1715886699639,-562.11,0.00011028,2]
[327191590,1715886699648,-628.04,0.00011028,2]
[327191591,1715886699657,-562.11,0.00011028,2]
[327191592,1715886699667,-562.18761198,0.00011028,2]
[327191593,1715886699676,-500.0,0.00011028,2]
[327191594,1715886699685,-500.0,0.00011028,2]
[327191595,1715886699694,-523.86,0.00011028,2]
[327191596,1715886699704,-500.0,0.00011028,2]
[327191597,1715886699713,-2571.6,0.00011028,2]
[327191598,1715886699722,-500.0,0.00011028,2]
[327191599,1715886699732,-500.0,0.00011028,2]
[327191600,1715886699741,-771.98,0.00011028,2]
[327191601,1715886699751,-583.78,0.00011028,2]
[327191602,1715886699760,-500.0,0.00011028,2]
[327191603,1715886699770,-606.18,0.00011028,2]
[327191604,1715886699780,-1214.76,0.00011028,2]
[327191605,1715886699790,-958.83,0.00011028,2]
[327191606,1715886700004,-977.01,0.00011028,2]
[327191607,1715886700015,-500.0,0.00011028,2]
[327191608,1715886700025,-1193.51,0.00011028,2]
[327191609,1715886700035,-350.46345962,0.00011028,2]
[327191610,1715886700044,-180.0599344,0.00011028,2]
[327191611,1715886700053,-500.0,0.00011028,2]
[327191612,1715886700062,-1423.9,0.00011028,2]
[327191613,1715886700072,-500.0,0.00011028,2]
[327191614,1715886700081,-500.0,0.00011028,2]
[327191615,1715886700091,-500.0,0.00011028,2]
[327191616,1715886700101,-596.8,0.00011028,2]
[327191617,1715886700110,-500.0,0.00011028,2]
[327191618,1715886700120,-758.29,0.00011028,2]
[327191619,1715886700129,-508.51,0.00011028,2]
[327191620,1715886700141,-971.84,0.00011028,2]
[327191621,1715886700151,-500.0,0.00011028,2]
[327191622,1715886700161,-1486.2,0.00011028,2]
[327191623,1715886700171,-174.99243646,0.00011028,2]
[327191624,1715886700180,-1382.63,0.00011028,2]
[327191625,1715886700190,-1382.63,0.00011028,2]
[327191626,1715886700199,-361.88,0.00011028,2]
[327191627,1715886700209,-151.0,0.00011028,2]
[327191628,1715886700218,-1012.04,0.00011028,2]
[327191629,1715886700228,-534.51,0.00011028,2]
[327191630,1715886700238,-795.71,0.00011028,2]
[327191631,1715886700247,-500.0,0.00011028,2]
[327191632,1715886700258,-957.42,0.00011028,2]
[327191633,1715886700268,-918.94,0.00011028,2]
[327191634,1715886700277,-546.98,0.00011028,2]
[327191635,1715886700288,-500.0,0.00011028,2]
[327191636,1715886700297,-712.64,0.00011028,2]
[327191637,1715886700307,-534.22,0.00011028,2]
[327191638,1715886700317,-702.73,0.00011028,2]
[327191639,1715886700326,-500.0,0.00011028,2]
[327191640,1715886700336,-500.0,0.00011028,2]
[327191641,1715886700346,-500.0,0.00011028,2]
[327191642,1715886700355,-623.22,0.00011028,2]
[327191643,1715886700364,-901.85,0.00011028,2]
[327191644,1715886700374,-5674.58,0.00011028,2]
[327191645,1715886700385,-500.0,0.00011028,2]
[327191646,1715886700395,-982.25,0.00011028,2]
[327191647,1715886700404,-911.82,0.00011028,2]
[327191648,1715886700414,-911.82,0.00011028,2]
[327191649,1715886700423,-265.44,0.00011028,2]
[327191650,1715886700433,-500.0,0.00011028,2]
[327191651,1715886700443,-572.37,0.00011028,2]
[327191652,1715886700453,-701.54,0.00011028,2]
[327191653,1715886700462,-751.27,0.00011028,2]
[327191654,1715886700472,-5568.04,0.00011028,2]
[327191655,1715886700482,-1199.07,0.00011028,2]
[327191656,1715886700491,-344.942949,0.00011028,2]
[327191657,1715886700500,-749.63,0.00011029,2]
[327191658,1715886700510,-749.63,0.00011029,2]
[327191659,1715886700524,-749.63,0.00011029,2]
[327191660,1715886700534,-749.63,0.00011029,2]
[327191661,1715886700544,-634.75,0.00011029,2]
[327191662,1715886700553,-634.75,0.00011029,2]
[327191663,1715886700565,-634.75,0.00011029,2]
[327191664,1715886700575,-634.75,0.00011029,2]
[327191665,1715886700583,-424.89,0.00011029,2]
[327191666,1715886700595,-500.0,0.00011029,2]
[327191667,1715886700604,-500.0,0.00011029,2]
[327191668,1715886700614,-500.0,0.00011029,2]
[327191669,1715886700623,-500.0,0.00011029,2]
[327191670,1715886700633,-1069.87,0.00011029,2]
[327191671,1715886700643,-1069.87,0.00011029,2]
[327191672,1715886700652,-1069.87,0.00011029,2]
[327191673,1715886700662,-1069.87,0.00011029,2]
[327191674,1715886700671,-820.33,0.00011029,2]